bitfinex/quotes_ETHUSD_20250511
["timestamp","ask_amount","ask_price","bid_price","bid_amount"]
[1746928074509,3.94516228,2534.8,2534.5,0.2316]
[1746928074842,3.9452457,2534.7,2534.5,0.2316]
[1746928075049,2.92,2535.0,2534.5,0.2316]
[1746928075257,3.58586623,2535.5,2534.5,0.2316]
[1746928075415,2.92,2535.4,2534.7,0.2266]
[1746928075610,0.8257,2536.0,2534.9,8.0]
[1746928075913,3.9435293,2535.8,2535.1,0.2266]
[1746928076133,6.50586623,2536.1,2535.2,0.03943977]
[1746928076334,3.94304973,2536.2,2535.3,0.2266]
[1746928076537,10.44851436,2536.4,2535.5,8.0]
[1746928076538,3.58586623,2536.4,2535.5,8.0]
[1746928076737,3.58586623,2536.4,2535.6,0.2266]
[1746928076927,7.52852696,2536.4,2535.6,1.34136]
[1746928077323,3.58586623,2536.4,2535.6,1.34136]
[1746928077515,3.94303904,2536.2,2535.6,0.2266]
[1746928077727,3.94275787,2536.3,2535.6,0.26603309]
[1746928077944,3.58586623,2536.4,2535.6,0.2266]
[1746928078164,3.94309354,2536.1,2535.6,0.2266]
[1746928078353,3.94295092,2536.2,2535.6,0.2266]
[1746928078517,3.58586623,2536.4,2535.6,0.26603309]
[1746928078853,3.9427606,2536.3,2535.6,0.2266]
[1746928079053,7.52852557,2536.4,2535.6,0.2266]
[1746928079944,3.58586623,2536.4,2535.6,0.2266]
[1746928080260,0.7863,2537.0,2535.8,0.2266]
[1746928080553,3.94230561,2536.6,2535.8,0.2266]
[1746928080739,3.94246106,2536.5,2535.8,0.2266]
[1746928080943,3.58586623,2536.7,2535.8,0.2266]
[1746928081142,3.94143499,2537.2,2536.0,0.2266]
[1746928081342,3.94166338,2537.0,2536.3,0.2266]
[1746928081542,3.94223173,2536.7,2536.3,0.2266]
[1746928081744,3.94212953,2536.7,2536.1,2.921]
[1746928081979,3.94221161,2536.7,2536.1,3.1476]
[1746928082143,3.9424585,2536.5,2536.1,3.1476]
[1746928082479,3.94229503,2536.6,2536.1,3.1476]
[1746928082676,3.94222586,2536.7,2536.1,3.1476]
[1746928082880,3.94244037,2536.5,2536.1,3.1476]
[1746928083058,3.9425958,2536.4,2536.1,3.1476]
[1746928083386,3.9427581,2536.3,2536.1,3.1476]
[1746928083553,7.52832359,2536.5,2536.1,3.1476]
[1746928083876,3.58586623,2536.5,2536.1,3.1476]
[1746928084455,7.52830711,2536.5,2536.1,3.1476]
[1746928084658,3.94260463,2536.4,2536.1,3.1476]
[1746928084862,4.20411257,2536.5,2536.1,3.1476]
[1746928085065,3.58586623,2536.5,2536.1,3.1476]
[1746928085467,3.94260388,2536.4,2536.1,3.1476]
[1746928085690,3.94290671,2536.2,2535.6,2.92]
[1746928085987,3.9431772,2536.1,2535.6,2.92]
[1746928086495,7.52882594,2536.2,2535.6,2.92]
[1746928086791,3.94319711,2536.1,2535.6,2.92]
[1746928086953,3.58586623,2536.2,2535.6,2.92]
[1746928087571,3.94368418,2535.7,2535.2,0.2266]
[1746928087779,3.58586623,2535.8,2535.1,2.92]
[1746928087962,0.7698,2536.1,2535.1,2.92]
[1746928087963,3.58586623,2535.5,2535.1,2.92]
[1746928088295,0.35858662,2535.7,2535.1,2.92]
[1746928088480,6.8615561,2535.8,2535.1,2.92]
[1746928088885,2.918,2535.8,2535.2,0.03943999]
[1746928089111,3.58586623,2535.9,2535.3,0.2266]
[1746928089251,3.58586623,2536.8,2535.6,0.55]
[1746928089460,3.58586623,2536.8,2535.8,8.2266]
[1746928089662,3.58586623,2536.8,2535.9,1.11466]
[1746928090104,3.58586623,2536.8,2536.0,0.2266]
[1746928090368,7.52785084,2536.8,2536.0,0.2266]
[1746928090686,3.58586623,2536.8,2536.0,0.2266]
[1746928091959,7.52740208,2537.1,2536.2,0.2266]
[1746928092263,3.58586623,2536.8,2536.3,2.918]
[1746928092468,3.94276176,2536.3,2535.8,3.1446]
[1746928092667,3.94322685,2536.0,2534.5,6.125]
[1746928092865,3.58586623,2536.2,2534.8,0.2266]
[1746928093060,7.52881993,2536.2,2534.8,0.2266]
[1746928093386,2.918,2536.3,2535.0,0.55]
[1746928093593,2.918,2536.3,2535.3,0.2266]
[1746928093909,6.86075963,2536.3,2535.5,8.2266]
[1746928094069,6.86075963,2536.3,2535.5,9.34106]
[1746928094406,2.918,2536.3,2535.5,9.34106]
[1746928094605,2.918,2536.3,2535.6,0.26603007]
[1746928094813,2.918,2536.7,2535.7,0.55]
[1746928094972,2.918,2536.7,2535.8,0.2266]
[1746928095507,3.94238573,2536.6,2535.8,0.2266]
[1746928095922,3.94235588,2536.6,2535.8,0.2266]
[1746928096086,3.96258003,2536.7,2535.8,0.2266]
[1746928096413,3.94245609,2536.5,2535.8,0.2266]
[1746928096598,3.58586623,2536.2,2535.4,2.918]
[1746928096801,3.58586623,2535.9,2534.7,2.0321]
[1746928096984,3.58586623,2535.6,2534.8,3.1446]
[1746928097394,3.94416699,2535.4,2534.8,3.1446]
[1746928097597,3.94455781,2535.2,2534.8,3.1446]
[1746928097804,6.50386623,2535.3,2534.8,3.1446]
[1746928097999,8.0,2535.2,2534.8,3.1446]
[1746928098203,3.94473794,2535.1,2534.8,3.1446]
[1746928098517,8.0,2535.2,2534.8,3.1446]
[1746928098518,11.94449023,2535.2,2534.8,3.1446]
[1746928098669,8.0,2535.2,2534.8,3.1446]
[1746928099127,3.7035,2536.0,2535.0,0.2266]
[1746928099128,3.58586623,2536.0,2535.0,0.2266]
[1746928099271,7.52820293,2536.6,2535.3,0.55]
[1746928099504,7.82382085,2536.6,2535.5,0.2266]
[1746928099703,8.0,2536.5,2535.7,0.2266]
[1746928099943,11.94245108,2536.5,2535.8,0.03943085]
[1746928100242,7.8238349,2536.6,2535.8,0.03943085]
[1746928100430,2.918,2537.0,2535.9,0.2266]
[1746928100773,3.94221983,2536.7,2536.0,2.918]
[1746928100952,7.81954213,2536.9,2536.0,2.918]
[1746928101252,3.87766623,2536.9,2536.0,2.918]
[1746928101451,3.58586623,2536.6,2536.0,2.918]
[1746928102330,3.94259332,2536.5,2536.0,2.918]
[1746928102534,3.94306218,2536.1,2536.0,2.918]
[1746928102744,3.94306218,2536.1,2535.6,0.2266]
[1746928102745,3.94323169,2536.0,2535.6,3.1446]
[1746928102910,8.0,2536.2,2535.6,3.1446]
[1746928103246,8.0,2535.8,2535.6,3.1446]
[1746928103430,3.9435787,2535.8,2535.6,3.1446]
[1746928103608,11.94343971,2535.9,2535.6,3.1446]
[1746928104010,8.0,2535.9,2535.6,3.1446]
[1746928104206,3.94180519,2537.0,2535.6,3.45906]
[1746928104420,8.0,2536.2,2535.6,3.45906]
[1746928104648,3.94319312,2536.1,2535.6,3.45906]
[1746928104852,3.9432374,2536.0,2535.6,3.1446]
[1746928105254,3.94267965,2536.4,2535.6,3.1446]
[1746928105485,7.52836049,2536.5,2535.7,0.03943354]
[1746928105650,7.52836049,2536.5,2535.6,3.1446]
[1746928105837,11.94274984,2536.4,2535.6,3.45906]
[1746928106038,3.94278972,2536.3,2535.6,3.45906]
[1746928106282,3.94307558,2536.1,2535.6,3.45906]
[1746928106482,3.94321766,2536.0,2535.6,3.1446]
[1746928106646,8.0,2536.1,2535.6,3.1446]
[1746928106979,3.58586623,2536.2,2535.6,2.918]
[1746928107198,8.7741,2536.1,2535.6,2.918]
[1746928107383,12.71720597,2536.1,2535.6,2.918]
[1746928107589,8.0,2535.9,2535.6,2.918]
[1746928108168,11.94338543,2535.9,2535.6,2.918]
[1746928108910,3.58586623,2536.4,2535.7,0.2266]
[1746928109210,3.94251649,2536.5,2535.7,0.2266]
[1746928109501,11.94277783,2536.3,2535.7,0.2266]
[1746928109700,3.94244037,2536.5,2535.7,0.2266]
[1746928109701,8.0,2536.4,2535.7,0.54106]
[1746928110221,7.52758235,2537.0,2535.8,0.2266]
[1746928110370,3.94184946,2536.9,2535.8,0.2266]
[1746928110718,11.94208822,2536.8,2535.8,0.2266]
[1746928110868,8.0,2536.8,2535.9,0.2266]
[1746928111268,11.94201643,2536.8,2535.9,0.2266]
[1746928111509,7.52799576,2536.7,2535.9,0.2266]
[1746928111686,8.0,2536.6,2535.9,0.2266]
[1746928112008,3.94245283,2536.5,2535.9,0.2266]
[1746928113315,8.0,2536.6,2535.9,0.2266]
[1746928113608,3.94169495,2537.0,2536.0,0.03942756]
[1746928113790,8.0,2536.9,2536.1,0.2266]
[1746928113965,11.94185679,2536.9,2536.2,2.918]
[1746928114165,3.94254262,2536.5,2536.2,2.918]
[1746928114369,11.94268456,2536.4,2536.2,2.918]
[1746928114577,3.94299186,2536.2,2535.7,0.2266]
[1746928114779,8.0,2536.4,2535.7,0.2266]
[1746928115018,3.94323541,2536.0,2535.7,0.2266]
[1746928115191,3.94323541,2536.0,2535.4,3.1446]
[1746928115395,8.0,2536.0,2535.4,3.45906]
[1746928115581,11.94325844,2536.0,2535.4,3.1446]
[1746928116098,11.94331312,2536.0,2535.4,3.1446]
[1746928116298,3.94337316,2535.9,2535.4,3.1446]
[1746928116498,8.0,2536.0,2535.5,0.03943722]
[1746928116819,3.58586623,2536.2,2535.5,0.03943722]
[1746928117021,3.58586623,2536.2,2535.5,0.31840372]
[1746928117337,8.0,2535.7,2535.1,0.2266]
[1746928117540,3.94423903,2535.4,2534.8,3.1446]
[1746928117839,11.94418476,2535.4,2534.8,3.1446]
[1746928118121,3.94435437,2535.3,2534.8,3.1446]
[1746928118486,11.94422395,2535.4,2534.8,3.1446]
[1746928118888,11.94422395,2535.4,2534.8,4.87866]
[1746928118889,8.0,2535.4,2534.8,4.87866]
[1746928119434,11.94423517,2535.4,2534.8,4.87866]
[1746928119945,10.918,2535.7,2534.9,0.03944607]
[1746928120154,2.918,2536.0,2535.0,0.2266]
[1746928120324,2.918,2536.0,2535.1,0.03943731]
[1746928120506,8.0,2535.9,2535.2,0.2266]
[1746928120707,8.0,2535.7,2535.2,0.2266]
[1746928120933,3.9442375,2535.4,2535.2,0.2266]
[1746928121135,11.58586623,2535.5,2534.8,2.918]
[1746928121407,2.918,2535.4,2534.8,2.918]
[1746928121611,7.53041439,2535.2,2534.8,2.918]
[1746928122147,3.94462758,2535.1,2534.8,2.918]
[1746928122346,3.94539572,2534.6,2534.5,0.005]
[1746928122531,11.58586623,2534.9,2534.5,0.005]
[1746928122856,3.94525002,2534.7,2534.5,0.005]
[1746928123004,8.0,2534.7,2534.5,0.005]
[1746928124133,2.918,2534.8,2534.5,0.005]
[1746928124339,8.0,2534.7,2534.5,0.005]
[1746928124741,2.918,2534.8,2534.5,0.005]
[1746928124938,8.0,2535.1,2534.5,0.005]
[1746928125650,8.0,2535.1,2534.6,0.2266]
[1746928125837,3.9450446,2534.9,2534.6,0.2266]
[1746928126004,8.0,2534.8,2534.6,0.2266]
[1746928126209,8.0,2535.1,2534.6,0.2266]
[1746928126410,8.0,2535.1,2534.5,0.005]
[1746928126411,3.94508442,2534.8,2534.5,0.005]
[1746928126650,11.94539572,2534.6,2534.5,0.005]
[1746928126849,8.0,2534.6,2534.5,0.005]
[1746928127222,2.918,2534.9,2534.5,0.005]
[1746928127418,10.918,2535.0,2534.5,0.005]
[1746928127829,8.0,2535.0,2534.5,0.005]
[1746928128211,2.918,2535.4,2534.6,0.2266]
[1746928128410,2.918,2535.4,2534.7,0.03944556]
[1746928128639,8.0,2535.3,2534.7,0.03944556]
[1746928128843,8.0,2535.3,2534.6,0.54166]
[1746928129045,3.94446432,2535.2,2534.6,0.54166]
[1746928129246,8.0,2535.3,2534.6,0.54166]
[1746928129452,8.0,2535.3,2534.7,0.346566]
[1746928129945,4.76689572,2534.6,2534.5,0.005]
[1746928130152,15.68489572,2534.6,2534.5,0.005]
[1746928130910,10.918,2534.6,2534.5,0.005]
[1746928131107,8.0,2534.6,2534.5,0.005]
[1746928131645,7.53099395,2534.8,2534.5,0.005]
[1746928131646,3.58586623,2534.8,2534.5,0.005]
[1746928131825,2.945,2534.9,2534.5,0.005]
[1746928132023,8.0,2535.1,2534.6,0.2266]
[1746928132214,3.94406883,2535.5,2534.6,0.2266]
[1746928132410,3.94406883,2535.5,2534.7,0.03944619]
[1746928132614,8.8215,2535.7,2534.7,0.03944619]
[1746928132813,4.70280196,2536.1,2534.8,0.26604453]
[1746928133036,6.89130777,2536.0,2534.8,0.2266]
[1746928133252,3.94338996,2535.9,2534.8,0.2266]
[1746928133857,4.76689572,2534.6,2534.5,0.005]
[1746928134040,3.94586276,2534.3,2534.2,0.005]
[1746928134244,16.90322899,2534.3,2534.2,0.005]
[1746928134617,16.35322899,2534.3,2534.2,0.005]
[1746928134852,19.37622899,2534.3,2534.2,0.005]
[1746928135024,3.94882325,2532.4,2532.3,0.30789892]
[1746928135227,6.64886623,2532.4,2532.3,0.30789892]
[1746928135639,10.59618808,2532.8,2532.3,0.30789892]
[1746928135951,6.64786623,2532.8,2532.3,0.30789892]
[1746928136157,3.94845292,2532.7,2532.3,0.30789892]
[1746928136358,4.76934258,2533.1,2532.3,0.30789892]
[1746928136557,3.94797939,2533.0,2532.3,0.30789892]
[1746928136721,7.01497939,2533.0,2532.3,0.30789892]
[1746928136918,3.067,2533.0,2532.3,0.30789892]
[1746928137145,3.58586623,2533.1,2532.4,0.2316]
[1746928137348,3.94798404,2533.0,2532.4,0.2316]
[1746928137654,10.59962791,2533.1,2532.4,0.2316]
[1746928137864,6.65186623,2533.1,2532.4,0.2316]
[1746928138162,6.64786623,2533.1,2532.4,0.2316]
[1746928138363,3.58586623,2533.1,2532.5,0.03948343]
[1746928138664,3.58586623,2533.1,2532.4,0.2316]
[1746928138870,3.58586623,2533.1,2532.4,0.58994989]
[1746928139222,3.58586623,2533.5,2532.5,0.03948156]
[1746928139469,3.58586623,2533.5,2532.6,0.2316]
[1746928139636,3.58586623,2533.5,2532.4,8.35834989]
[1746928139637,6.64386623,2533.8,2532.8,0.2316]
[1746928139959,7.38738285,2533.8,2533.0,0.2316]
[1746928140135,1.29472165,2534.3,2533.1,0.03947218]
[1746928140340,3.94551357,2534.6,2533.2,0.2316]
[1746928140341,3.06,2534.5,2533.2,0.2316]
[1746928140561,7.00450969,2534.6,2533.4,0.2316]
[1746928140727,3.94556037,2534.5,2533.6,0.2316]
[1746928141064,3.58586623,2534.4,2533.6,0.2316]
[1746928141765,6.64086623,2534.9,2533.8,0.2316]
[1746928141963,3.58586623,2534.6,2533.9,0.2316]
[1746928142175,3.58586623,2534.0,2533.3,0.2316]
[1746928142340,6.64786623,2534.0,2533.3,0.2316]
[1746928142547,10.59422448,2534.0,2533.3,0.2316]
[1746928142760,3.94664952,2533.8,2533.3,0.2316]
[1746928142958,3.58586623,2533.7,2533.3,0.2316]
[1746928143534,3.94699978,2533.6,2532.8,0.2316]
[1746928143734,3.94761054,2533.2,2532.8,0.2316]
[1746928143983,0.8139,2533.8,2532.4,0.2316]
[1746928143984,3.9481019,2532.9,2532.4,0.2316]
[1746928144184,3.94882325,2532.4,2532.3,0.30789892]
[1746928144479,7.04474856,2532.4,2532.3,0.30789892]
[1746928144689,10.99357181,2532.4,2532.3,0.30789892]
[1746928144914,7.04474856,2532.4,2532.3,0.30789892]
[1746928145216,11.58586623,2533.0,2532.4,0.2316]
[1746928145394,3.58586623,2533.0,2532.4,0.2316]
[1746928146178,3.94804374,2532.9,2532.4,0.2316]
[1746928146391,7.53377062,2533.0,2532.4,0.2316]
[1746928146604,0.753391,2532.8,2532.4,0.2316]
[1746928146804,3.58586623,2533.0,2532.4,0.2316]
[1746928146979,3.94819962,2532.8,2532.4,0.2316]
[1746928147181,0.30100868,2533.1,2532.3,0.30789892]
[1746928147182,3.58586623,2532.6,2532.3,0.30789892]
[1746928147506,3.58586623,2533.0,2532.4,0.2316]
[1746928147709,3.098,2532.9,2532.4,0.2316]
[1746928148301,3.58586623,2533.0,2532.4,0.2316]
[1746928149676,0.8015,2533.9,2532.6,0.2316]
[1746928149888,3.58586623,2533.7,2532.6,0.2316]
[1746928150128,3.94710112,2533.6,2532.6,0.2316]
[1746928150636,8.00154901,2533.7,2532.6,0.2316]
[1746928150803,3.58586623,2533.7,2532.8,0.2316]
[1746928151014,3.58586623,2533.7,2532.9,3.045]
[1746928151600,3.58586623,2533.7,2533.0,0.2316]
[1746928152129,0.30090335,2533.9,2533.0,0.2316]
[1746928152334,10.62116245,2534.1,2533.0,0.55926]
[1746928152633,6.67486623,2534.1,2533.0,0.55926]
[1746928152835,3.94646723,2534.0,2533.0,0.55926]
[1746928153037,3.94649817,2533.9,2533.0,0.55926]
[1746928153194,3.94640705,2534.0,2533.0,8.55926]
[1746928153398,3.94640705,2534.0,2533.1,1.160426]
[1746928153795,6.67486623,2534.1,2533.2,0.27106811]
[1746928154019,3.58586623,2534.1,2533.2,0.2316]
[1746928154696,3.36932353,2534.4,2533.0,8.32766]
[1746928154697,3.58586623,2533.4,2533.0,3.045]
[1746928154918,3.94765445,2533.2,2533.0,3.045]
[1746928155109,3.94445285,2533.4,2533.0,3.045]
[1746928155439,3.94768566,2533.2,2533.0,3.045]
[1746928155609,3.94766804,2533.2,2533.0,3.045]
[1746928155811,3.94749057,2533.3,2533.0,3.045]
[1746928156005,3.58586623,2533.4,2533.0,3.045]
[1746928156199,3.94712213,2533.5,2533.0,3.045]
[1746928156400,3.076,2533.6,2533.0,3.045]
[1746928156995,7.02305394,2533.6,2533.0,3.045]
[1746928157318,3.076,2533.6,2533.0,3.045]
[1746928157519,3.94742036,2533.3,2533.0,3.045]
[1746928157706,3.58586623,2533.4,2533.0,3.045]
[1746928157707,3.94772692,2533.2,2533.0,3.045]
[1746928157909,3.58586623,2533.4,2532.8,0.2316]
[1746928158133,3.58586623,2533.7,2532.8,0.2316]
[1746928158542,3.94718795,2533.5,2532.8,0.2316]
[1746928159141,3.94729358,2533.4,2532.8,0.2316]
[1746928159645,3.58586623,2533.0,2532.3,0.30789892]
[1746928159853,7.53382749,2533.0,2532.3,0.30789892]
[1746928160155,3.58586623,2533.0,2532.3,0.30789892]
[1746928160363,7.53385136,2533.0,2532.3,0.30789892]
[1746928161735,3.58586623,2533.0,2532.3,0.30789892]
[1746928162058,7.53383847,2533.0,2532.3,0.30789892]
[1746928162218,7.53383847,2533.0,2532.3,3.35289892]
[1746928162423,3.94814348,2532.9,2532.3,3.35289892]
[1746928163129,4.73402432,2533.0,2532.4,0.03948516]
[1746928163457,3.88917362,2533.0,2532.3,3.35289892]
[1746928163686,0.30330739,2533.0,2532.4,0.03948377]
[1746928163856,7.53320878,2533.4,2532.5,0.2316]
[1746928164477,3.94751897,2533.3,2532.5,0.2316]
[1746928164628,3.9475968,2533.2,2532.5,0.2316]
[1746928164819,0.29232807,2533.2,2532.5,0.2316]
[1746928165036,5.40135031,2533.3,2532.5,0.2316]
[1746928165476,3.94761957,2533.2,2532.5,0.2316]
[1746928165678,1.45385245,2533.3,2532.5,0.2316]
[1746928165968,3.58586623,2533.4,2532.5,0.2316]
[1746928166344,7.53379695,2533.0,2532.5,0.2316]
[1746928166545,3.94811665,2532.9,2532.5,0.2316]
[1746928166739,3.58586623,2533.0,2532.5,0.2316]
[1746928166939,3.58586623,2533.4,2532.6,0.03948511]
[1746928167152,6.99452529,2533.3,2532.5,0.2316]
[1746928167357,3.047,2533.3,2532.5,0.2316]
[1746928167552,3.94760073,2533.2,2532.5,0.2316]
[1746928167754,3.047,2533.3,2532.6,3.047]
[1746928169663,7.53314102,2533.4,2532.6,3.047]
[1746928169882,7.53314102,2533.4,2532.6,3.37486]
[1746928170187,3.94747702,2533.3,2532.6,3.37486]
[1746928170390,3.94765528,2533.2,2532.6,3.047]
[1746928170683,3.94772637,2533.2,2532.6,3.047]
[1746928170890,3.94748301,2533.3,2532.6,3.047]
[1746928171086,3.94763576,2533.2,2532.6,3.047]
[1746928171276,3.94815488,2532.9,2532.5,0.2316]
[1746928171476,3.94794411,2533.0,2532.5,0.2316]
[1746928171790,3.58586623,2533.1,2532.5,0.2316]
[1746928171983,4.7013515,2533.0,2532.5,0.2316]
[1746928172492,0.75334974,2533.0,2532.5,0.2316]
[1746928172708,3.94790863,2533.0,2532.5,0.2316]
[1746928173798,3.94805667,2532.9,2532.5,0.2316]
[1746928174162,3.94793097,2533.0,2532.5,0.2316]
[1746928174676,7.53362,2533.1,2532.5,0.2316]
[1746928174891,3.94828641,2532.8,2532.3,3.35489892]
[1746928175085,3.94822492,2532.8,2532.3,3.35489892]
[1746928175622,3.94811109,2532.9,2532.3,3.35489892]
[1746928175825,4.4583591,2532.8,2532.3,3.35489892]
[1746928176283,8.40656238,2532.8,2532.3,3.35489892]
[1746928177022,8.40656222,2532.8,2532.3,3.35489892]
[1746928177520,3.58586623,2532.9,2532.3,3.35489892]
[1746928177733,3.58586623,2533.2,2532.3,3.35489892]
[1746928178032,0.29129229,2533.5,2532.4,0.27108487]
[1746928178033,3.94733095,2533.4,2532.4,0.27108487]
[1746928178211,0.8288,2533.9,2532.5,0.2316]
[1746928178535,3.94712048,2533.5,2532.7,0.0816]
[1746928178706,5.09523319,2533.5,2532.7,0.0816]
[1746928178908,3.94743597,2533.3,2532.7,0.0816]
[1746928179237,3.58586623,2533.4,2532.7,0.0816]
[1746928179388,3.58586623,2533.1,2532.7,0.0816]
[1746928180939,10.53614817,2533.4,2532.7,0.0816]
[1746928181139,11.98446295,2533.4,2532.7,0.0816]
[1746928181325,3.94750898,2533.3,2532.7,0.0816]
[1746928181533,8.03718101,2533.4,2532.7,0.0816]
[1746928181845,6.58486623,2533.6,2532.7,0.0816]
[1746928182058,3.94738265,2533.4,2532.7,0.0816]
[1746928182260,3.94726454,2533.4,2532.7,0.0816]
[1746928182461,3.94743149,2533.3,2532.7,0.0816]
[1746928182652,3.94762979,2533.2,2532.7,0.0816]
[1746928182964,4.73693749,2533.3,2532.7,0.0816]
[1746928183266,3.58586623,2533.0,2532.6,3.047]
[1746928183466,7.53383101,2533.0,2532.6,3.047]
[1746928183765,3.58586623,2533.0,2532.6,3.047]
[1746928184138,4.37532124,2533.3,2532.7,0.0816]
[1746928184340,3.58586623,2533.6,2532.7,0.0816]
[1746928184661,0.29256106,2533.9,2532.9,0.0816]
[1746928184978,3.58586623,2534.1,2533.0,0.03946889]
[1746928185143,3.58586623,2533.8,2532.9,0.0816]
[1746928185321,3.58586623,2533.8,2533.1,0.0816]
[1746928185526,0.29728171,2533.9,2533.3,0.0816]
[1746928185763,3.56402729,2533.8,2533.3,0.0816]
[1746928186349,7.51077842,2533.8,2533.3,0.0816]
[1746928187341,3.56402729,2533.8,2533.3,0.0816]
[1746928187833,3.60503286,2533.9,2533.3,0.0816]
[1746928188028,3.60503286,2533.9,2533.3,0.39446]
[1746928188352,3.60503286,2533.9,2533.3,0.0816]
[1746928188551,7.55154467,2533.9,2533.3,0.0816]
[1746928189068,7.84796804,2533.9,2533.3,0.0816]
[1746928189633,3.60503286,2533.5,2533.2,3.047]
[1746928189830,3.60503286,2533.5,2533.0,0.0816]
[1746928189831,0.36050329,2533.4,2533.0,3.1286]
[1746928190036,3.60503286,2533.5,2533.0,3.1286]
[1746928190241,7.55225463,2533.5,2533.0,3.1286]
[1746928190766,3.60503286,2533.5,2533.0,3.1286]
[1746928191130,3.90145623,2533.9,2533.1,0.03947561]
[1746928191358,7.55154627,2533.9,2533.2,0.0816]
[1746928191559,0.7817,2533.3,2532.5,0.0816]
[1746928191771,2.974,2533.3,2532.5,0.0816]
[1746928191934,3.72915463,2533.8,2532.7,0.0816]
[1746928192139,2.974,2533.8,2532.9,0.0816]
[1746928192371,3.60503286,2534.3,2533.1,0.0816]
[1746928192573,3.60503286,2534.4,2533.1,0.0816]
[1746928192773,3.60503286,2534.1,2533.2,0.03947189]
[1746928192975,3.60503286,2534.1,2533.3,0.0816]
[1746928193277,0.29029069,2534.2,2533.4,3.047]
[1746928193440,3.60503286,2534.4,2533.5,0.39446]
[1746928193634,3.94603198,2534.2,2533.5,0.0816]
[1746928193839,3.94631335,2534.1,2533.5,0.0816]
[1746928194074,3.94636238,2534.0,2533.5,0.0816]
[1746928194380,3.94624286,2534.1,2533.5,0.0816]
[1746928194775,3.94609133,2534.2,2533.5,0.0816]
[1746928194980,3.9461908,2534.1,2533.5,0.0816]
[1746928195390,3.60503286,2534.0,2533.5,0.0816]
[1746928195690,3.94675215,2533.8,2533.5,0.0816]
[1746928195876,3.60503286,2534.0,2533.5,0.0816]
[1746928196361,3.94660228,2533.9,2533.5,0.0816]
[1746928196989,3.60503286,2534.0,2533.5,0.0816]
[1746928197193,8.33667444,2534.0,2533.5,0.0816]
[1746928197487,0.30138856,2534.2,2533.5,0.12107125]
[1746928197687,7.55097087,2534.3,2533.5,0.12107125]
[1746928197892,3.94601966,2534.2,2533.5,0.0816]
[1746928198104,7.55097186,2534.3,2533.5,0.12106627]
[1746928198287,3.60503286,2534.3,2533.5,0.12106627]
[1746928198487,3.60503286,2534.3,2533.5,0.4378729]
[1746928199269,3.60503286,2534.3,2533.6,0.0816]
[1746928199474,7.55089574,2534.3,2533.6,0.0816]
[1746928199674,3.60503286,2534.3,2533.6,0.0816]
[1746928200389,3.94556577,2534.5,2533.6,0.0816]
[1746928200563,3.60503286,2534.6,2533.7,0.0816]
[1746928200761,0.01106516,2535.5,2533.9,0.0816]
[1746928200979,0.01106516,2535.5,2534.1,0.6316]
[1746928201213,4.50295563,2536.2,2534.8,8.0]
[1746928201398,12.05102754,2536.2,2535.0,0.0816]
[1746928201597,1.20510275,2536.1,2535.2,0.0816]
[1746928201764,3.60503286,2535.9,2535.2,0.0816]
[1746928202085,3.94413828,2535.5,2535.2,0.0816]
[1746928202283,3.94399526,2535.5,2535.2,0.0816]
[1746928202496,7.54944621,2535.3,2535.0,2.969]
[1746928202810,3.94399526,2535.5,2535.0,2.969]
[1746928202811,3.94410943,2535.5,2535.0,2.969]
[1746928203017,3.94418361,2535.4,2535.0,2.969]
[1746928203310,4.36153286,2535.3,2534.5,0.0816]
[1746928203487,3.60503286,2534.9,2534.5,0.0816]
[1746928203812,3.60503286,2534.9,2534.4,2.968]
[1746928204014,3.94555139,2534.5,2534.4,2.968]
[1746928204377,3.60503286,2534.6,2533.9,3.0496]
[1746928204580,3.60503286,2534.6,2534.0,0.3444187]
[1746928204883,8.0,2534.8,2534.1,0.0816]
[1746928205096,11.94511666,2534.8,2534.1,0.0816]
[1746928205296,8.0,2534.8,2534.1,0.0816]
[1746928205621,8.0,2534.7,2534.1,0.0816]
[1746928205823,7.55047943,2534.6,2534.1,0.0816]
[1746928205993,7.55047943,2534.6,2533.4,0.0816]
[1746928205994,3.60503286,2534.2,2533.4,0.0816]
[1746928207317,3.60503286,2534.2,2533.4,0.20487532]
[1746928207742,3.60503286,2533.8,2533.4,0.20487532]
[1746928208017,3.94691386,2533.7,2533.4,0.20487532]
[1746928208379,7.55173492,2533.8,2533.4,0.0816]
[1746928208587,7.55171399,2533.8,2533.4,0.0816]
[1746928208786,11.94721726,2533.5,2533.3,2.968]
[1746928209014,3.60503286,2533.4,2533.3,2.968]
[1746928209623,8.0,2533.3,2532.8,2.968]
[1746928209834,8.0,2532.9,2532.8,2.968]
[1746928210061,8.0,2532.9,2532.3,0.30789892]
[1746928210062,13.78210455,2532.9,2532.3,0.30789892]
[1746928210272,7.55385611,2532.4,2532.3,0.30789892]
[1746928210570,15.55385611,2532.4,2532.3,0.30789892]
[1746928210725,11.60503286,2532.4,2532.3,0.30789892]
[1746928210918,15.55385611,2532.4,2532.3,0.30789892]
[1746928211155,16.60762751,2532.4,2532.3,0.30789892]
[1746928211962,17.42152751,2532.4,2532.3,0.30789892]
[1746928212133,3.95015453,2531.6,2531.2,0.0816]
[1746928212460,7.55524926,2531.6,2531.2,0.0816]
[1746928212618,8.0,2531.1,2529.5,0.0816]
[1746928212954,8.0,2531.1,2529.1,2.969]
[1746928212955,3.60503286,2530.2,2529.1,2.969]
[1746928213123,8.0,2530.1,2529.7,0.20612151]
[1746928213326,8.0,2530.1,2529.4,2.969]
[1746928213533,8.0,2530.1,2529.5,0.03953016]
[1746928213920,3.60503286,2530.2,2529.5,2.969]
[1746928214134,3.60503286,2530.2,2529.5,3.2659]
[1746928214348,7.55769123,2530.0,2529.7,0.0816]
[1746928214520,3.60503286,2530.0,2529.5,2.969]
[1746928214720,3.60503286,2530.3,2529.6,0.0395309]
[1746928214935,3.60503286,2530.3,2529.5,2.969]
[1746928215156,3.60503286,2530.3,2529.6,0.2969]
[1746928215356,3.95240121,2530.2,2529.5,2.969]